fUSD/lending_fUSD_20260112
["ID","MTS","AMOUNT","RATE_DAILY","PERIOD"]
[401420997,1768200647395,-151.0,0.00017996,2]
[401420998,1768200647404,-151.0,0.00017996,2]
[401420999,1768200647413,-1767.548746,0.00017996,2]
[401421000,1768200647426,-151.0,0.00017996,2]
[401421001,1768200647436,-200.139122,0.00017996,2]
[401421002,1768200647445,-151.0,0.00017996,2]
[401421003,1768200647455,-200.139122,0.00017996,2]
[401421004,1768200647464,-151.0,0.00017996,2]
[401421005,1768200647473,-151.0,0.00017996,2]
[401421006,1768200647483,-151.0,0.00017996,2]
[401421007,1768200647492,-151.0,0.00017996,2]
[401421008,1768200647501,-151.0,0.00017996,2]
[401421009,1768200647510,-151.0,0.00017996,2]
[401421010,1768200647519,-208.281146,0.00017996,2]
[401421011,1768200647528,-211.915832,0.00017996,2]
[401421012,1768200647538,-200.139122,0.00017996,2]
[401421013,1768200647547,-151.0,0.00017996,2]
[401421014,1768200647556,-200.139122,0.00017996,2]
[401421015,1768200647565,-811.206845,0.00017997,2]
[401421016,1768200647575,-150.0,0.00017997,2]
[401421017,1768200647584,-300.0,0.00017999,2]
[401421018,1768200647593,-500.0,0.00017999,2]
[401421019,1768200647603,-500.0,0.00017999,2]
[401421020,1768200647612,-500.0,0.00017999,2]
[401421021,1768200647621,-500.0,0.00017999,2]
[401421022,1768200647631,-500.0,0.00017999,2]
[401421023,1768200647640,-456.07319796,0.00017999,2]
[401421024,1768200647649,-300.0,0.00017999,2]
[401421025,1768200647659,-300.0,0.00017999,2]
[401421026,1768200647668,-666.0,0.00017999,2]
[401421027,1768200647678,-758.23,0.00017999,2]
[401421028,1768200647687,-758.23,0.00017999,2]
[401421029,1768200647697,-758.23,0.00017999,2]
[401421030,1768200647706,-758.23,0.00017999,2]
[401421031,1768200647716,-758.23,0.00017999,2]
[401421032,1768200647725,-758.23,0.00017999,2]
[401421033,1768200647735,-758.23,0.00017999,2]
[401421034,1768200647744,-758.23,0.00017999,2]
[401421035,1768200647754,-758.23,0.00017999,2]
[401421036,1768200647763,-758.23,0.00017999,2]
[401421037,1768200647773,-758.25509882,0.00017999,2]
[401421038,1768200647782,-300.0,0.00017999,2]
[401421039,1768200647792,-666.0,0.00017999,2]
[401421040,1768200647801,-300.0,0.00018,5]
[401421041,1768200647811,-154.38953807,0.00018,2]
[401421042,1768200647821,-156.71525667,0.00018,2]
[401421043,1768200647832,-263.65847092,0.00018,2]
[401421044,1768200647842,-154.70586823,0.00018,2]
[401421045,1768200647853,-155.07098725,0.00018,2]
[401421046,1768200647862,-151.45444701,0.00018,2]
[401421047,1768200647874,-155.70825827,0.00018,2]
[401421048,1768200647885,-152.34445976,0.00018,2]
[401421049,1768200647896,-248.59699216,0.00018,2]
[401421050,1768200647906,-261.69004956,0.00018,2]
[401421051,1768200647916,-1975096.40494322,0.00018,2]
[401421052,1768200648600,-347.053942,0.00018,2]
[401421053,1768200648612,-8722.04724838,0.00018,2]
[401421054,1768200648623,-3125.25427995,0.00018,2]
[401421055,1768200648634,-1538.18897492,0.00018,2]
[401421056,1768200648965,-208.281146,0.00017996,2]
[401421057,1768200648975,-89.03055376,0.00017996,2]
[401421058,1768200649056,-300.50830758,0.0001798,2]
[401421059,1768200649067,-1308.51258046,0.0001798,2]
[401421060,1768200649183,-151.0,0.00014699,2]
[401421061,1768200649193,-1418.4353213,0.0001798,2]
[401421062,1768200649204,-1793.54379066,0.0001798,2]
[401421063,1768200649214,-61.96944624,0.00017996,2]
[401421064,1768200649224,-4.39470099,0.00017996,2]
[401421065,1768200649235,-158.02592101,0.00017996,2]
[401421066,1768200649245,-193.76543986,0.00017996,2]
[401421067,1768200649263,-14.51570614,0.00017996,2]
[401421068,1768200649273,-211.915832,0.00017996,2]
[401421069,1768200649282,-151.0,0.00017996,2]
[401421070,1768200649291,-162.420622,0.00017996,2]
[401421071,1768200649300,-208.281146,0.00017996,2]
[401421072,1768200649309,-514.727244,0.00017996,2]
[401421073,1768200649323,-211.915832,0.00017996,2]
[401421074,1768200649332,-163.897056,0.00017996,2]
[401421075,1768200649343,-162.420622,0.00017996,2]
[401421076,1768200649352,-1811.94424346,0.00018,2]
[401421077,1768200673335,461.415,0.00012914,2]
[401421078,1768200696317,-203.20335228,0.00012918,2]
[401421079,1768200699781,-350.32548869,0.00012918,2]
[401421080,1768200702783,-514.47564436,0.00012918,2]
[401421081,1768200704401,-256.4178067,0.00012918,2]
[401421082,1768200706060,-561.36394466,0.00012918,2]
[401421083,1768200708301,-230.60288473,0.00012918,2]
[401421084,1768200709816,-250.01361838,0.00012918,2]
[401421085,1768200713550,-276.61697368,0.00012918,2]
[401421086,1768200714667,-461.71282103,0.00012918,2]
[401421087,1768200716204,-265.81442893,0.00012918,2]
[401421088,1768200718356,-379.99487605,0.00012918,2]
[401421089,1768200720079,-225.53173516,0.00012918,2]
[401421090,1768200722713,-327.73237129,0.00012918,2]
[401421091,1768200725066,-514.39939241,0.00012918,2]
[401421092,1768200729331,-358.93138377,0.00012918,2]
[401421093,1768200731461,-458.50405972,0.00012918,2]
[401421094,1768200735452,-257.09814938,0.00012918,2]
[401421095,1768200736834,-318.57736384,0.00012918,2]
[401421096,1768200738845,-174.824,0.00012918,2]
[401421097,1768200743721,-315.00656508,0.00012915,2]
[401421098,1768200747018,-412.02256426,0.00012915,2]
[401421099,1768200748467,-299.84871669,0.00012915,2]
[401421100,1768200750074,-214.7707599,0.00012915,2]
[401421101,1768200754185,-258.6558289,0.00012915,2]
[401421102,1768200781330,300.0,0.00012914,2]
[401421103,1768200791777,348.16938237,0.00012818,2]
[401421104,1768200795924,227.88550527,0.00012914,2]
[401421105,1768200795950,972.11449473,0.00012914,2]
[401421106,1768200841406,300.0,0.00012914,2]
[401421107,1768200841917,300.0,0.00012914,2]
[401421108,1768200842474,150.0,0.00012914,2]
[401421109,1768200861347,500.0,0.00012914,2]
[401421110,1768200861433,500.0,0.00012914,2]
[401421111,1768200861507,348.64998875,0.00012914,2]
[401421112,1768200870618,187.70101576,0.00012914,2]
[401421113,1768200879533,235.18048075,0.00012914,2]
[401421114,1768200899075,-1524.0,0.00012915,2]
[401421115,1768200901701,1200.0,0.00012914,2]
[401421116,1768200919274,221.81118475,0.00012914,2]
[401421117,1768200921120,4541.17694468,0.00012818,2]
[401421118,1768200933209,-276.0,0.00012915,2]
[401421119,1768200962609,300.0,0.00012914,2]
[401421120,1768200974438,151.39,6.797e-05,2]
[401421121,1768200974638,91.98589058,7.205e-05,2]
[401421122,1768200974663,59.40410942,7.205e-05,2]
[401421123,1768200974835,151.39,7.613e-05,2]
[401421124,1768200975022,151.39,8.021e-05,2]
[401421125,1768200975232,151.39,8.429e-05,2]
[401421126,1768200975435,151.39,8.837e-05,2]
[401421127,1768200976462,151.39,9.245e-05,2]
[401421128,1768200976519,151.39,9.654e-05,2]
[401421129,1768200976587,151.39,0.00010062,2]
[401421130,1768200976792,151.39,0.0001047,2]
[401421131,1768200977013,151.39,0.00010878,2]
[401421132,1768200977205,151.39,0.00011286,2]
[401421133,1768200977424,151.39,0.00011694,2]
[401421134,1768200977624,151.39,0.00012102,2]
[401421135,1768200977738,6140.2089493,0.00012818,2]
[401421136,1768200977825,151.39,0.00012511,2]
[401421137,1768200990603,500.0,0.00012914,2]
[401421138,1768200990909,500.0,0.00012914,2]
[401421139,1768200991221,500.0,0.00012914,2]
[401421140,1768200991536,332.32694128,0.00012914,2]
[401421141,1768200991564,167.67305872,0.00012914,2]
[401421142,1768200991866,500.0,0.00012914,2]
[401421143,1768200992172,368.60696723,0.00012914,2]
[401421148,1768201013815,340.97957095,0.00012914,2]
[401421149,1768201021399,300.0,0.00012914,2]
[401421150,1768201021688,300.0,0.00012914,2]
[401421151,1768201022352,150.0,0.00012914,2]
[401421152,1768201025068,151.0,0.00012915,2]
[401421153,1768201025679,151.0,0.00012915,2]
[401421154,1768201026306,151.0,0.00012915,2]
[401421155,1768201027583,151.0,0.00012915,2]
[401421156,1768201027668,151.0,0.00012915,2]
[401421157,1768201028183,151.0,0.00012915,2]
[401421158,1768201028803,151.0,0.00012915,2]
[401421159,1768201029435,151.0,0.00012915,2]
[401421160,1768201030011,160.04644863,0.00012915,2]
[401421161,1768201033184,200.0,0.00012915,2]
[401421162,1768201037348,505.33267795,0.00012915,2]
[401421163,1768201043375,151.0,0.00012915,2]
[401421164,1768201043888,151.0,0.00012915,2]
[401421165,1768201044498,151.0,0.00012915,2]
[401421166,1768201045089,151.0,0.00012915,2]
[401421167,1768201045727,151.0,0.00012915,2]
[401421168,1768201046372,151.0,0.00012915,2]
[401421169,1768201047053,151.0,0.00012915,2]
[401421170,1768201047695,258.88257428,0.00012915,2]
[401421171,1768201056000,474.117081,0.00012268,2]
[401421172,1768201060335,925.98385704,0.00012818,2]
[401421173,1768201065415,1300.0,0.000128,4]
[401421174,1768201067505,2700.0,0.000129,4]
[401421175,1768201073048,5534.0,0.000142,5]
[401421176,1768201075555,923.589369,0.00012269,2]
[401421177,1768201077288,578.82115917,0.00012816,2]
[401421179,1768201096075,1200.0,0.00012914,2]
[401421180,1768201141439,300.0,0.00012914,2]
[401421181,1768201144915,80.97723603,0.00012815,2]
[401421182,1768201144939,3721.60376397,0.00012815,2]
[401421183,1768201175645,272.193821,0.00012174,2]
[401421184,1768201176501,329.55531489,0.00012897,2]
[401421185,1768201201642,1200.0,0.00012914,2]
[401421186,1768201201767,300.0,0.00012914,2]
[401421187,1768201201804,300.0,0.00012914,2]
[401421188,1768201202397,150.0,0.00012914,2]
[401421190,1768201208585,196.45542985,0.00012914,2]
[401421191,1768201223985,318.73410747,0.00012914,2]
[401421192,1768201224127,3211.46756282,0.00012815,2]
[401421193,1768201224154,10000.01,0.00012815,2]
[401421194,1768201224180,10000.01,0.00012815,2]
[401421195,1768201224205,9159.11523718,0.00012815,2]
[401421196,1768201238388,403.3120362,0.00012914,2]
[401421198,1768201261165,500.0,0.00012914,2]
[401421199,1768201261220,500.0,0.00012914,2]
[401421200,1768201261274,500.0,0.00012914,2]
[401421201,1768201261325,500.0,0.00012914,2]
[401421202,1768201261438,584.97157418,0.00012914,2]
[401421203,1768201273155,321.9501,0.00012815,2]
[401421204,1768201290633,235.1,0.00012748,2]
[401421206,1768201293317,180.253,0.00012656,2]
[401421207,1768201293407,2469.924,0.00012656,2]
[401421208,1768201299437,206.35384379,0.00012914,2]
[401421209,1768201303434,500.0,0.00012815,2]
[401421210,1768201321318,300.0,0.00012914,2]
[401421211,1768201324958,200.0,0.00012915,2]
[401421212,1768201325163,200.0,0.00012915,2]
[401421213,1768201325766,171.59830762,0.00012915,2]
[401421214,1768201328116,151.0,0.00012915,2]
[401421215,1768201328717,151.0,0.00012915,2]
[401421216,1768201329344,151.0,0.00012915,2]
[401421217,1768201329391,500.0,0.00012915,2]
[401421218,1768201329962,151.0,0.00012915,2]
[401421219,1768201330009,500.0,0.00012915,2]
[401421220,1768201330569,151.0,0.00012915,2]
[401421221,1768201330614,500.0,0.00012915,2]
[401421222,1768201331785,151.0,0.00012915,2]
[401421223,1768201331828,223.85917441,0.00012915,2]
[401421224,1768201331854,276.14082559,0.00012915,2]
[401421225,1768201332367,151.0,0.00012915,2]
[401421226,1768201332417,500.0,0.00012915,2]
[401421227,1768201332460,500.0,0.00012915,2]
[401421228,1768201332535,303.94078909,0.00012915,2]
[401421229,1768201332575,151.0,0.00012915,2]
[401421230,1768201332618,500.0,0.00012915,2]
[401421231,1768201333087,151.0,0.00012915,2]
[401421232,1768201333127,500.0,0.00012915,2]
[401421233,1768201334220,151.0,0.00012915,2]
[401421234,1768201334291,500.0,0.00012915,2]
[401421235,1768201334844,151.0,0.00012915,2]
[401421236,1768201334907,500.0,0.00012915,2]
[401421237,1768201335457,151.0,0.00012915,2]
[401421238,1768201335511,500.0,0.00012915,2]
[401421239,1768201336084,151.0,0.00012915,2]
[401421240,1768201336128,151.0,0.00012915,2]
[401421241,1768201336180,178.28714253,0.00012915,2]
[401421242,1768201336719,151.0,0.00012915,2]
[401421243,1768201336763,151.0,0.00012915,2]
[401421244,1768201337335,151.0,0.00012915,2]
[401421245,1768201337487,151.0,0.00012915,2]
[401421246,1768201337925,151.0,0.00012915,2]
[401421247,1768201338106,151.0,0.00012915,2]
[401421248,1768201338541,151.0,0.00012915,2]
[401421249,1768201338765,151.0,0.00012915,2]
[401421250,1768201339149,151.0,0.00012915,2]
[401421251,1768201339399,151.0,0.00012915,2]
[401421252,1768201339747,151.0,0.00012915,2]
[401421253,1768201340019,151.0,0.00012915,2]
[401421254,1768201340382,151.0,0.00012915,2]
[401421255,1768201340604,151.0,0.00012915,2]
[401421256,1768201341208,151.0,0.00012915,2]
[401421257,1768201342871,151.0,0.00012915,2]
[401421258,1768201343034,151.0,0.00012915,2]
[401421259,1768201343189,151.0,0.00012915,2]
[401421260,1768201343650,151.0,0.00012915,2]
[401421261,1768201347127,500.0,0.00012915,2]
[401421262,1768201347776,500.0,0.00012915,2]
[401421263,1768201349134,500.0,0.00012915,2]
[401421264,1768201349787,164.64124279,0.00012915,2]
[401421265,1768201349813,335.35875721,0.00012915,2]
[401421266,1768201350420,500.0,0.00012915,2]
[401421267,1768201351345,500.0,0.00012915,2]
[401421268,1768201351685,500.0,0.00012915,2]
[401421269,1768201352316,500.0,0.00012915,2]
[401421270,1768201353528,500.0,0.00012915,2]
[401421271,1768201353731,500.0,0.00012915,2]
[401421272,1768201354280,557.30178876,0.00012915,2]
[401421273,1768201364361,6107.34945403,0.00012815,2]
[401421274,1768201364389,5047.87067766,0.00012815,2]
[401421275,1768201367337,4111.3471,0.00012815,2]
[401421276,1768201373961,840.79222234,0.00012815,2]
[401421277,1768201373989,10000.01,0.00012815,2]
[401421278,1768201374015,1415.57597766,0.00012815,2]
[401421279,1768201379808,2500.0,0.00012815,2]
[401421280,1768201382226,300.0,0.00012914,2]
[401421281,1768201382398,150.0,0.00012914,2]
[401421282,1768201387157,612.69002409,0.00012815,2]
[401421283,1768201392057,928.56,0.00012815,2]
[401421284,1768201396590,1200.0,0.00012914,2]
[401421285,1768201402236,2893.18399825,0.00012905,2]
[401421286,1768201402263,10000.01,0.00012905,2]
[401421287,1768201402287,4798.44560922,0.00012905,2]
[401421288,1768201429256,3077.0434,0.00012815,2]
[401421289,1768201432474,2124.52099078,0.00012815,2]
[401421290,1768201432502,8056.18658957,0.00012815,2]
[401421291,1768201448397,1943.82341043,7.945e-05,2]
[401421292,1768201448423,3210.26816657,7.945e-05,2]
[401421293,1768201453721,500.0,0.00012815,2]
[401421294,1768201462139,186.16448487,0.00012815,2]
[401421295,1768201501234,174.0,0.00012914,2]
[401421296,1768201501276,300.0,0.00012914,2]
[401421297,1768201501317,1200.0,0.00012914,2]
[401421298,1768201517595,2148.9329,0.00012815,2]
[401421299,1768201524000,2280.64444856,0.00012815,2]
[401421300,1768201524030,7261.67245144,0.00012815,2]
[401421301,1768201530091,2500.0,0.00012815,2]
[401421303,1768201561462,238.33754856,0.00012914,2]
[401421304,1768201561489,61.66245144,0.00012914,2]
[401421305,1768201561781,300.0,0.00012914,2]
[401421306,1768201562435,150.0,0.00012914,2]
[401421308,1768201603353,500.0,0.00012815,2]
[401421309,1768201605028,1115.84918988,0.00012815,2]
[401421310,1768201621364,300.0,0.00012914,2]
[401421311,1768201622723,1100.0,0.000128,4]
[401421312,1768201624827,2300.0,0.000129,4]
[401421313,1768201632492,200.0,0.00012915,2]
[401421314,1768201634412,151.0,0.00012915,2]
[401421315,1768201635017,151.0,0.00012915,2]
[401421316,1768201635648,151.0,0.00012915,2]
[401421317,1768201635709,500.0,0.00012915,2]
[401421318,1768201636252,151.0,0.00012915,2]
[401421319,1768201638018,151.0,0.00012915,2]
[401421320,1768201638077,151.0,0.00012915,2]
[401421321,1768201638149,151.0,0.00012915,2]
[401421322,1768201638208,151.0,0.00012915,2]
[401421323,1768201638397,151.0,0.00012915,2]
[401421324,1768201638443,151.0,0.00012915,2]
[401421325,1768201638969,151.0,0.00012915,2]
[401421326,1768201639351,151.0,0.00012915,2]
[401421327,1768201639588,151.0,0.00012915,2]
[401421328,1768201639781,200.0,0.00012915,2]
[401421329,1768201639997,151.0,0.00012915,2]
[401421330,1768201640219,151.0,0.00012915,2]
[401421331,1768201640610,151.0,0.00012915,2]
[401421332,1768201640821,151.0,0.00012915,2]
[401421333,1768201641215,151.0,0.00012915,2]
[401421334,1768201641466,151.0,0.00012915,2]
[401421335,1768201641806,151.0,0.00012915,2]
[401421336,1768201642073,151.0,0.00012915,2]
[401421337,1768201642431,151.0,0.00012915,2]
[401421338,1768201642693,151.0,0.00012915,2]
[401421339,1768201643317,151.0,0.00012915,2]
[401421340,1768201643546,151.0,0.00012915,2]
[401421341,1768201644022,151.0,0.00012915,2]
[401421342,1768201644668,151.0,0.00012915,2]
[401421343,1768201659935,2500.0,0.00012815,2]
[401421344,1768201662499,95.49835868,0.00012815,2]
[401421345,1768201662524,56.56661635,0.00012815,2]
[401421346,1768201674000,9943.44338365,0.00012547,2]
[401421347,1768201674026,877.24661635,0.00012547,2]
[401421348,1768201682386,300.0,0.00012914,2]
[401421349,1768201741401,300.0,0.00012914,2]
[401421350,1768201741893,300.0,0.00012914,2]
[401421351,1768201742418,150.0,0.00012914,2]
[401421352,1768201754284,500.0,0.00012815,2]
[401421353,1768201756184,7572.76338365,0.00012815,2]
[401421354,1768201756212,3963.56280024,0.00012815,2]
[401421355,1768201760280,1000.0,0.00012914,2]
[401421356,1768201776838,5036.44719976,0.00012815,2]
[401421357,1768201776865,10000.01,0.00012815,2]
[401421358,1768201776891,10000.01,0.00012815,2]
[401421359,1768201776919,10000.01,0.00012815,2]
[401421360,1768201776946,10000.01,0.00012815,2]
[401421361,1768201776976,10000.01,0.00012815,2]
[401421362,1768201777002,10000.01,0.00012815,2]
[401421363,1768201777029,10000.01,0.00012815,2]
[401421364,1768201777054,10000.01,0.00012815,2]
[401421365,1768201777890,-239.83158984,0.00012815,2]
[401421366,1768201779666,-252.177763,0.00012815,2]
[401421367,1768201782768,-186.83759342,0.00012815,2]
[401421368,1768201784330,-178.18123788,0.00012815,2]
[401421369,1768201786083,-209.66521579,0.00012815,2]
[401421370,1768201787305,-311.81946759,0.00012815,2]
[401421371,1768201788823,-151.39680068,0.00012815,2]
[401421372,1768201792520,-67050.0,0.00012815,2]
[401421373,1768201792642,-527.97186034,0.00012815,2]
[401421374,1768201794269,-189.01438501,0.00012815,2]
[401421375,1768201797834,-184.72499494,0.00012815,2]
[401421376,1768201799933,-291.60566457,0.00012815,2]
[401421377,1768201802055,-162.11424412,0.00012814,2]
[401421378,1768201805330,-137.88575588,0.00012814,2]
[401421379,1768201805355,-170.72679723,0.00012814,2]
[401421380,1768201808551,-129.27320277,0.00012814,2]
[401421381,1768201808578,-216.60375857,0.00012814,2]
[401421382,1768201810183,-443.43511023,0.00012814,2]
[401421383,1768201811195,-539.9611312,0.00012814,2]
[401421384,1768201811226,-300.0,0.00012814,2]
[401421385,1768201811259,-255.0,0.00012814,2]
[401421386,1768201814105,-245.23471979,0.00012815,2]
[401421387,1768201816675,-300.0,0.00012815,2]
[401421388,1768201818441,-168.67399136,0.00012815,2]
[401421389,1768201822139,-238.94714755,0.00012815,2]
[401421390,1768201825072,-363.41558655,0.00012815,2]
[401421391,1768201826424,-348.47656102,0.00012815,2]
[401421392,1768201830269,-159.25570802,0.00012815,2]
[401421393,1768201831267,-916.14782113,0.00012815,2]
[401421397,1768201832203,-908.04201786,0.00012815,2]
[401421398,1768201832215,-88764.91113672,0.00012815,2]
[401421399,1768201832852,-259.07070953,0.00012815,2]
[401421400,1768201836249,-272.67071473,0.00012815,2]
[401421401,1768201838418,-1875.93,0.00012815,2]
[401421402,1768201838538,-2129.09999932,0.00012815,2]
[401421464,1768201839590,-178.27799937,0.00012815,2]
[401421590,1768201840876,-1912.18752,0.00012815,2]
[401421604,1768201841010,-8970.94738541,0.00012815,2]
[401421613,1768201841100,-233.97048591,0.00012815,2]
[401421616,1768201841114,-736944.98672291,0.00012815,2]
[401421618,1768201841124,-1099.5249,0.00012815,2]
[401421620,1768201841145,-281.83931929,0.00012815,2]
[401421622,1768201841155,-2883.63510289,0.00012815,2]
[401421624,1768201841166,-2995.17829643,0.00012815,2]
[401421626,1768201841177,-1119.21541804,0.00012815,2]
[401421628,1768201841188,-250.0,0.00012915,2]
[401421630,1768201841199,-195.0,0.00012915,2]
[401421632,1768201841211,-151.0,0.00012915,2]
[401421634,1768201841222,-151.0,0.00012915,2]
[401421636,1768201841232,-1000.0,0.00012915,2]
[401421638,1768201841242,-842.32144287,0.00012915,2]
[401421640,1768201841253,-200.0,0.00012915,2]
[401421642,1768201841263,-250.0,0.00012915,2]
[401421644,1768201841273,-33596.3197,0.00012918,2]
[401421646,1768201841283,-1000.0,0.00012918,2]
[401421648,1768201841294,-151.39,0.00012919,2]
[401421650,1768201841304,-166.66,0.00012948,2]
[401421652,1768201841314,-200.0,0.00013044,2]
[401421654,1768201841325,-500.0,0.00013205,2]
[401421656,1768201841335,-150.0,0.00013205,2]
[401421658,1768201841345,-500.0,0.00013205,2]
[401421660,1768201841355,-500.0,0.00013205,2]
[401421662,1768201841365,-150.0,0.00013205,2]
[401421664,1768201841375,-150.0,0.00013205,2]
[401421666,1768201841385,-150.0,0.00013205,2]
[401421668,1768201841395,-478.0,0.00013205,2]
[401421670,1768201841405,-500.0,0.00013205,2]
[401421671,1768201841416,-500.0,0.00013205,2]
[401421703,1768201841747,-230.15043616,0.00013205,2]
[401421706,1768201841764,-150.0,0.00013205,2]
[401421708,1768201841774,-500.0,0.00013205,2]
[401421710,1768201841784,-500.0,0.00013205,2]
[401421712,1768201841794,-500.0,0.00013205,2]
[401421714,1768201841803,-150.0,0.00013205,2]
[401421716,1768201841813,-500.0,0.0001326,2]
[401421718,1768201841823,-150.0,0.0001326,2]
[401421720,1768201841833,-500.0,0.0001326,2]
[401421721,1768201841843,-153.92511904,0.0001326,2]
[401421723,1768201841852,-571.60013609,0.0001326,2]
[401421725,1768201841862,-159.58217341,0.0001326,2]
[401421727,1768201841872,-150.0,0.0001326,2]
[401421729,1768201841882,-478.0,0.0001326,2]
[401421731,1768201841892,-500.0,0.0001326,2]
[401421733,1768201841902,-500.0,0.0001326,2]
[401421735,1768201841912,-158.4343028,0.0001326,2]
[401421737,1768201841922,-500.0,0.0001326,2]
[401421739,1768201841932,-500.0,0.0001326,2]
[401421741,1768201841942,-500.0,0.0001326,2]
[401421743,1768201841951,-500.0,0.0001326,2]
[401421745,1768201841961,-500.0,0.00013315,2]
[401421747,1768201841971,-150.0,0.00013315,2]
[401421749,1768201841982,-500.0,0.00013315,2]
[401421751,1768201841992,-242.66022183,0.00013315,2]
[401421753,1768201842002,-478.0,0.00013315,2]
[401421755,1768201842012,-500.0,0.00013315,2]
[401421757,1768201842022,-500.0,0.00013315,2]
[401421759,1768201842032,-500.0,0.00013315,2]
[401421761,1768201842043,-500.0,0.00013315,2]
[401421763,1768201842053,-500.0,0.00013315,2]
[401421765,1768201842063,-151.39,0.00013327,2]
[401421766,1768201842073,-500.0,0.00013369,2]
[401421767,1768201842083,-150.0,0.00013369,2]
[401421768,1768201842094,-500.0,0.00013369,2]
[401421769,1768201842104,-478.0,0.00013369,2]
[401421770,1768201842115,-610.0,0.00013369,2]
[401421771,1768201842125,-500.0,0.00013369,2]
[401421772,1768201842136,-500.0,0.00013369,2]
[401421773,1768201842146,-500.0,0.00013369,2]
[401421774,1768201842157,-500.0,0.00013369,2]
[401421776,1768201842168,-166.66,0.00013376,2]
[401421778,1768201842178,-25979.38,0.0001338,2]
[401421780,1768201842189,-499.99,0.0001338,2]
[401421782,1768201842199,-9999.99,0.0001338,2]
[401421784,1768201842210,-9999.99,0.0001338,2]
[401421786,1768201842220,-464.4,0.0001338,2]
[401421788,1768201842231,-150.99,0.0001338,2]
[401421790,1768201842243,-9999.99,0.0001338,2]
[401421792,1768201842255,-9999.99,0.0001338,2]
[401421794,1768201842267,-999.99,0.0001338,2]
[401421796,1768201842278,-9999.99,0.0001338,2]
[401421798,1768201842289,-11536.32618384,0.0001338,2]
[401421800,1768201842299,-13971.08,0.00013424,2]
[401421802,1768201842310,-299.99,0.00013424,2]
[401421804,1768201842321,-150.99,0.00013424,2]
[401421806,1768201842332,-21318.04,0.00013424,2]
[401421808,1768201842342,-500.0,0.00013424,2]
[401421810,1768201842358,-152.39732617,0.00013424,2]
[401421812,1768201842369,-500.0,0.00013424,2]
[401421814,1768201842380,-478.0,0.00013424,2]
[401421816,1768201842391,-500.0,0.00013424,2]
[401421818,1768201842401,-500.0,0.00013424,2]
[401421820,1768201842412,-500.0,0.00013424,2]
[401421822,1768201842422,-432.01326872,0.00013424,2]
[401421824,1768201842433,-3240.0,0.00013425,2]
[401421826,1768201842444,-235.1,0.00013456,2]
[401421828,1768201842454,-500.0,0.00013479,2]
[401421830,1768201842465,-500.0,0.00013479,2]
[401421832,1768201842475,-478.0,0.00013479,2]
[401421834,1768201842485,-400.0,0.00013479,2]
[401421836,1768201842495,-500.0,0.00013479,2]
[401421838,1768201842505,-500.0,0.00013479,2]
[401421840,1768201842516,-500.0,0.00013534,2]